Cogmind - Beta 13 @@@ ROGUE MODE // 2024.07.16 @ 10:40:45 Player: Sgt. SmokeWeed Result: Self-destructed Performance ------------- Evolutions (2) 1000 Regions Visited (5) 1000 Robots Destroyed (18) 90 Value Destroyed (365) 365 Prototype IDs (23) 460 Alien Tech Used (0) 0 Bonus (300) 300 TOTAL SCORE: 3215 Bonus ------- Aligned with FarCom 300 Cogmind --------- Core Integrity 259/550 Matter 19/300 Energy 99/100 System Corruption 0% Temperature Cool (0) Movement Core (50) Location -8/Materials Parts ------- > --- POWER (1) -------- (None) > --- PROPULSION (2) --- (None) > --- UTILITY (4) ------ (None) > --- WEAPON (4) ------- (None) > --- INVENTORY (5) ---- Carbon-fiber Leg Chronowheel Peak State ------------ > --- POWER ------------ Improved Ion Engine > --- PROPULSION ------- Aluminum Leg Aluminum Leg > --- UTILITY ---------- Medium Armor Plating Medium Armor Plating > --- WEAPON ----------- Assault Rifle Rocket Launcher > --- INVENTORY -------- Chronowheel Mini Grenade Launcher Mini Grenade Launcher [Rating: 12] Favorites ----------- Power Improved Ion Engine Engine Improved Ion Engine Propulsion Aluminum Leg Leg Aluminum Leg Wheel Compact Wheel Utility Medium Armor Plating Protection Medium Armor Plating Weapon Assault Rifle Energy Gun EM Pulse Gun Ballistic Gun Assault Rifle Launcher Rocket Launcher Build | -11 -10 -10 -10 -9 -8 ------- Run | Yrd Mat Min Exi Min Mat Slots Evolved 4 | . . . . . 4 Power . | . . . . . . Propulsion . | . . . . . . Utility 2 | . . . . . 2 Weapon 2 | . . . . . 2 Parts Attached 15 | 7 4 1 . . 3 Power 2 | 1 1 . . . . Engine 2 | 1 1 . . . . Core . | . . . . . . Reactor . | . . . . . . Propulsion 4 | 4 . . . . . Treads . | . . . . . . Leg 2 | 2 . . . . . Wheel 2 | 2 . . . . . Hover . | . . . . . . Flight . | . . . . . . Utility 2 | . 2 . . . . Device . | . . . . . . Storage . | . . . . . . Processor . | . . . . . . Hackware . | . . . . . . Protection 2 | . 2 . . . . Artifact . | . . . . . . Weapon 7 | 2 1 1 . . 3 Energy Gun 2 | 1 . . . . 1 Energy Cannon . | . . . . . . Ballistic Gun 1 | 1 . . . . . Ballistic Cannon . | . . . . . . Launcher 4 | . 1 1 . . 2 Special Weapon . | . . . . . . Impact Weapon . | . . . . . . Slashing Weapon . | . . . . . . Piercing Weapon . | . . . . . . Special Melee Weapon . | . . . . . . Unidentified Prototypes . | . . . . . . Parts Lost 10 | . . . . . 10 Power 1 | . . . . . 1 Propulsion 2 | . . . . . 2 Utility 2 | . . . . . 2 Weapon 5 | . . . . . 5 Highest Loss Streak 6 | . . . . . 6 To Critical Strikes . | . . . . . . Average Slot Usage (%) 90 | . 95 100 100 100 42 Engine 12 | . 14 14 14 14 5 Leg 25 | . 28 28 28 28 14 Protection 24 | . 23 28 28 28 8 Ballistic Gun 12 | . 14 14 14 14 5 Launcher 13 | . 12 14 14 14 8 Naked Turns 5 | . . . . . 5 Heaviest Build 27 | 9 24 27 27 27 27 Greatest Support 20 | 20 20 20 20 20 20 Greatest Overweight (x) 2 | 2 1 1 1 1 1 Average Overweight (x) . | . . 1 1 1 . Largest Inventory Capacity 5 | 5 5 5 5 5 5 Average Capacity 5 | 5 5 5 5 5 5 Most Carried 3 | . 3 3 3 3 3 Average Carried 2 | . 1 2 2 3 2 Final Capacity 5 | 5 5 5 5 5 5 Final Carried 3 | . 2 2 3 3 2 Class Distribution -------------------- 100% | Mutant Dominant Class ---------------- Mutant | -10/Materials Mutant | -10/Mines Mutant | -10/Exiles Mutant | -9/Mines Mutant | -8/Materials Resources | -11 -10 -10 -10 -9 -8 ----------- Run | Yrd Mat Min Exi Min Mat Matter Collected 258 | 224 . 21 . . 13 Remotely . | . . . . . . Salvage Created 189 | . 31 82 . . 76 Parts 27 | . 12 8 . . 7 Haulers Intercepted . | . . . . . . Recyclers Shooed 2 | . 1 . . . 1 Parts Field Recycled . | . . . . . . Retrieved Matter . | . . . . . . Parts Self-Destructed . | . . . . . . Prevented . | . . . . . . Kills | -11 -10 -10 -10 -9 -8 ------- Run | Yrd Mat Min Exi Min Mat Combat Hostiles Destroyed 13 | . 6 5 . . 2 Guns 2 | . . 1 . . 1 AOE 11 | . 6 4 . . 1 Classes Destroyed 8 | . 2 2 . . 4 Worker 1 | . . . . . 1 Builder 1 | . . . . . 1 Tunneler 1 | . . 1 . . . Watcher 2 | . 1 . . . 1 Swarmer 9 | . 6 3 . . . Grunt 2 | . . 2 . . . Sentry 1 | . . . . . 1 Hunter 1 | . . . . . 1 Best Kill Streak 6 | . 6 4 . . 3 Combat Bots Only 5 | . 5 3 . . 1 Max Kills in Single Turn 3 | . 2 3 . . 3 Gunslinging . | . . . . . . Exploded 2 | . 2 2 . . 1 Melee . | . . . . . . Uniques/NPCs Destroyed . | . . . . . . Combat | -11 -10 -10 -10 -9 -8 -------- Run | Yrd Mat Min Exi Min Mat Hostile Shots Fired 118 | . 14 11 . . 93 Missed 34 | . 2 . . . 32 Damage Taken 1220 | . 150 134 . . 936 Core 291 | . . . . . 291 Absorbed by Shields . | . . . . . . Core Remaining (%) 100 | 100 . . . 100 . Volleys Fired 36 | . 9 7 . . 20 Largest 2 | . 2 2 . . 2 Hottest 60 | . 50 53 . . 60 Shots Fired 53 | . 16 14 . . 23 Gun 34 | . 9 7 . . 18 Cannon . | . . . . . . Launcher 19 | . 7 7 . . 5 Special . | . . . . . . Kinetic 29 | . 9 7 . . 13 Thermal . | . . . . . . Explosive 19 | . 7 7 . . 5 Electromagnetic 5 | . . . . . 5 Robot Hit Streak 6 | . 2 2 . . 6 Robot Miss Streak 3 | . 2 2 . . 3 Penetration Max . | . . . . . . Secondary Targets . | . . . . . . Shots Hit Robots 23 | . 6 5 . . 12 Core Hits 32 | . 6 11 . . 15 Critical Kills . | . . . . . . Critical Parts Destroyed 1 | . 1 . . . . Critical Strikes 1 | . 1 . . . . Destroy 1 | . 1 . . . . Melee Attacks . | . . . . . . Impact . | . . . . . . Slashing . | . . . . . . Piercing . | . . . . . . Sneak Attacks . | . . . . . . Combat Hostiles . | . . . . . . Follow-up Attacks . | . . . . . . Damage Inflicted 1288 | . 453 318 . . 517 Guns 235 | . 51 29 . . 155 Cannons . | . . . . . . Explosions 1028 | . 402 281 . . 345 Melee . | . . . . . . Ramming 25 | . . 8 . . 17 Kinetic 185 | . 51 29 . . 105 Thermal . | . . . . . . Explosive 1028 | . 402 281 . . 345 Electromagnetic 50 | . . . . . 50 Impact . | . . . . . . Slashing . | . . . . . . Piercing . | . . . . . . Highest Corruption . | . . . . . . Average Corruption . | . . . . . . Corruption Purged . | . . . . . . Corruption Blocked . | . . . . . . Overload Shots . | . . . . . . Overflow Damage 46 | . 28 3 . . 15 Projectiles . | . . . . . . Explosions 46 | . 28 3 . . 15 Melee . | . . . . . . Knockbacks . | . . . . . . Impact . | . . . . . . Kinetic . | . . . . . . Secondary . | . . . . . . Self-Inflicted Damage 48 | . 48 . . . . Shots 1 | . 1 . . . . Rammed . | . . . . . . Targets Rammed 13 | . . 3 . . 10 Kicked 13 | . . 3 . . 10 Crushed . | . . . . . . Highest Temperature 93 | . 27 93 . . 7 Average Temperature 26 | . 10 40 . . 4 Received Heat Transfer 339 | . . 78 . . 261 Siege Activations . | . . . . . . Robots Corrupted . | . . . . . . Combat Hostiles . | . . . . . . Parts Fried . | . . . . . . Impact Corruptions . | . . . . . . Robots Melted . | . . . . . . Combat Hostiles . | . . . . . . Parts Melted . | . . . . . . Heat Transferred . | . . . . . . Parts Sabotaged . | . . . . . . Parts Stolen . | . . . . . . Parts Stripped . | . . . . . . Power Chain Reactions . | . . . . . . Alert | -11 -10 -10 -10 -9 -8 ------- Run | Yrd Mat Min Exi Min Mat Peak Influence 303 | . 291 303 . . 102 Initial 113 | . . 113 . . . Average 119 | . 178 194 . . 46 Maximum Alert Level 1 | . 1 1 . . . Low Security (%) 71 | 100 41 53 . 100 100 Level 1 28 | . 58 46 . . . Level 2 . | . . . . . . Level 3 . | . . . . . . Level 4 . | . . . . . . Level 5 . | . . . . . . High Security . | . . . . . . Max Security . | . . . . . . Squads Dispatched 2 | . 1 . . . 1 Investigation 1 | . 1 . . . . Extermination . | . . . . . . Reinforcement 1 | . . . . . 1 Assault . | . . . . . . Garrison . | . . . . . . Intercept . | . . . . . . Searches Triggered . | . . . . . . Construction Impeded . | . . . . . . Haulers Reinforced . | . . . . . . Active Scanning Responses . | . . . . . . Cargo Convoy Interrupts . | . . . . . . Stealth | -11 -10 -10 -10 -9 -8 --------- Run | Yrd Mat Min Exi Min Mat Distress Signals 3 | . 2 . . . 1 Communications Jammed . | . . . . . . Distress Signals . | . . . . . . Times Spotted 28 | . 8 5 . . 15 Peak Tracking Total 5 | . 4 3 . . 5 Tactical Retreats 1 | . 1 . . . . Traps | -11 -10 -10 -10 -9 -8 ------- Run | Yrd Mat Min Exi Min Mat Traps Triggered 1 | . 1 . . . . Indirectly . | . . . . . . Trap Hack Attempts . | . . . . . . Triggered . | . . . . . . Disarmed . | . . . . . . Reprogrammed . | . . . . . . Reused . | . . . . . . Traps Extracted . | . . . . . . Installed . | . . . . . . Triggered . | . . . . . . Machines | -11 -10 -10 -10 -9 -8 ---------- Run | Yrd Mat Min Exi Min Mat Machines Disabled 4 | . 3 1 . . . Max in Single Turn 2 | . 2 1 . . . Machines Repaired . | . . . . . . Machines Dismantled . | . . . . . . Machines Sabotaged . | . . . . . . Overloaded Fab Kills . | . . . . . . Hacking | -11 -10 -10 -10 -9 -8 --------- Run | Yrd Mat Min Exi Min Mat Machines Accessed 3 | . 2 . 1 . . Terminals 2 | . 2 . . . . Fabricators . | . . . . . . Repair Stations . | . . . . . . Recycling Units . | . . . . . . Scanalyzers . | . . . . . . Garrison Access . | . . . . . . Total Hacks 4 | . 3 . 1 . . Successful 2 | . 1 . 1 . . Failed 2 | . 2 . . . . Catastrophic 1 | . 1 . . . . Database Lockouts . | . . . . . . Manual 2 | . 1 . 1 . . Terminals 3 | . 3 . . . . Fabricators . | . . . . . . Repair Stations . | . . . . . . Recycling Units . | . . . . . . Scanalyzers . | . . . . . . Garrison Access . | . . . . . . Terminal Hacks 2 | . 1 . 1 . . Branch Access Points 1 | . 1 . . . . Derelict Proto ID Bank 1 | . . . 1 . . Fabricator Hacks . | . . . . . . Repair Station Hacks . | . . . . . . Recycling Unit Hacks . | . . . . . . Scanalyzer . | . . . . . . Garrison Access Hacks . | . . . . . . Unauthorized Hacks . | . . . . . . Terminals . | . . . . . . Fabricators . | . . . . . . Repair Stations . | . . . . . . Recycling Units . | . . . . . . Scanalyzers . | . . . . . . Garrison Access . | . . . . . . Data Cores Recovered . | . . . . . . Used . | . . . . . . Hacking Detections 1 | . 1 . . . . Full Trace Events 1 | . 1 . . . . Feedback Events . | . . . . . . Feedback Blocked . | . . . . . . Robot Schematics Acquired . | . . . . . . Robots Built . | . . . . . . Authchips . | . . . . . . Time . | . . . . . . Total Robot Build Rating . | . . . . . . Part Schematics Acquired . | . . . . . . Parts Built . | . . . . . . Authchips . | . . . . . . Time . | . . . . . . Total Part Build Rating . | . . . . . . Parts Repaired . | . . . . . . Time . | . . . . . . Parts Recycled . | . . . . . . Recycled Matter . | . . . . . . Retrieved Matter . | . . . . . . Retrieved Components . | . . . . . . Parts Scanalyzed . | . . . . . . Part Schematics Acquired . | . . . . . . Parts Damaged . | . . . . . . Bothacking | -11 -10 -10 -10 -9 -8 ------------ Run | Yrd Mat Min Exi Min Mat Used RIF Installer . | . . . . . . Robots Hacked . | . . . . . . Non-combat . | . . . . . . Combat . | . . . . . . Robot Hacks Applied . | . . . . . . Relay Couplers Released . | . . . . . . Fabnet Peak Effective % . | . . . . . . Robots Rewired . | . . . . . . Allies Hacked . | . . . . . . Hacks Repelled . | . . . . . . Allies | -11 -10 -10 -10 -9 -8 -------- Run | Yrd Mat Min Exi Min Mat Total Allies . | . . . . . . Largest Group . | . . . . . . Highest-Rated Group . | . . . . . . Highest-Rated Ally . | . . . . . . Total Orders . | . . . . . . Ally Attacks . | . . . . . . Total Damage . | . . . . . . Kills . | . . . . . . Allies Corrupted . | . . . . . . Allies Melted . | . . . . . . Intel | -11 -10 -10 -10 -9 -8 ------- Run | Yrd Mat Min Exi Min Mat Robot Analysis Total . | . . . . . . Derelict Logs Recovered 4 | . . 2 . 2 . Drone Launches . | . . . . . . Drone Recoveries . | . . . . . . Exploration | -11 -10 -10 -10 -9 -8 ------------- Run | Yrd Mat Min Exi Min Mat Turns Passed 1838 | 67 190 598 476 225 282 Spaces Moved 961 | 50 90 300 251 119 151 Core 27 | 18 . . . . 9 Treads . | . . . . . . Legs 932 | 30 90 300 251 119 142 Wheels 2 | 2 . . . . . Hover . | . . . . . . Flight . | . . . . . . Fastest Speed 50 | 50 120 190 190 190 50 Average Speed 175 | 109 175 190 190 190 135 Slowest Speed 190 | 150 190 190 190 190 190 Overloaded Moves . | . . . . . . Propulsion Burnouts . | . . . . . . Robots Hopped . | . . . . . . Cave-ins Triggered . | . . . . . . Exploration Rate (%) 29 | 4 21 67 42 33 12 Regions Visited 5 Branch Regions 3 Pre-discovered Areas 3 | . . 1 . 2 . Known Exits Taken 1 | . 1 . . . . Unknown Exits Taken 4 | 1 . 1 1 1 . Scrap Searched . | . . . . . . Spaces Dug . | . . . . . . Terrain Destroyed 216 | . 104 64 . . 48 Melee . | . . . . . . Projectile . | . . . . . . AOE 216 | . 104 64 . . 48 Terrain Rammed . | . . . . . . Walls Destroyed . | . . . . . . Machines Disabled . | . . . . . . Actions | -11 -10 -10 -10 -9 -8 --------- Run | Yrd Mat Min Exi Min Mat Total 1043 | 60 106 312 251 118 196 Wait 14 | 2 . 1 . . 11 Move 956 | 49 89 299 250 118 151 Hop . | . . . . . . Pick Up 4 | . 2 . 1 . 1 Fast Attach 11 | 7 3 . . . 1 Attach 2 | . . . . . 2 Detach . | . . . . . . Swap 2 | . 1 1 . . . Drop 5 | 2 2 1 . . . Fire 36 | . 9 7 . . 20 Melee . | . . . . . . Ram . | . . . . . . Kick 13 | . . 3 . . 10 Crush . | . . . . . . Escape Stasis . | . . . . . . Rewire . | . . . . . . Trap . | . . . . . . Miscellaneous . | . . . . . . Route ------- -11/Scrapyard -10/Materials (discovered 2 exits: *Min x2) -10/Mines (discovered 3 exits: [*Mat x2] / *Exi) -10/Exiles -9/Mines -8/Materials History --------- Turn | Location | Event 38 | -11/Scrapyard | Discovered new exit (range 15) 68 | -11/Scrapyard | Entered Materials 114 | -10/Materials | Identified exit to Mines 258 | -10/Materials | Entered Mines 307 | -10/Mines | Received a Rocket Launcher from a helpful Derelict 331 | -10/Mines | Build established: Mutant 355 | -10/Mines | Learned location of Zion (-6) 385 | -10/Mines | Discovered new exit (range 16) 710 | -10/Mines | Discovered new exit (range 15) 807 | -10/Mines | Found a hidden stash of uninstalled traps 816 | -10/Mines | Learned Materials trap positions 843 | -10/Mines | Deemed a non-threat by the Exiles lab entrance 845 | -10/Mines | Discovered new exit (range 5) 856 | -10/Mines | Entered Exiles 910 | -10/Exiles | Met 8R-AWN 944 | -10/Exiles | Met EX-HEX 997 | -10/Exiles | Met EX-BIN 1024 | -10/Exiles | Aligned with FarCom system 1026 | -10/Exiles | Given EX-Vault access code 1069 | -10/Exiles | Opened EX-Vault 1088 | -10/Exiles | Found Chronowheel 1133 | -10/Exiles | Warned to stay clear of 0b10 Research branches 1308 | -10/Exiles | Discovered new exit (range 14) 1332 | -10/Exiles | Left Exiles lab with Chronowheel 1332 | -10/Exiles | Entered Mines 1370 | -9/Mines | A weapon hastily lodged in a ceiling crevice suddenly fell to the ground 1519 | -9/Mines | Discovered new exit (range 15) 1557 | -9/Mines | Entered Materials 1557 | -8/Materials | Evolved 4 slots: Utility x2, Weapon x2 1558 | -8/Materials | Loaded intel: 29 trap records 1751 | -8/Materials | Lost 6 parts (1p1n2u2w) 1836 | -8/Materials | Core integrity fell below 50% 1839 | -8/Materials | Self-destructed Last Messages --------------- U-05 Engineer lays Concrete. U-05 Engineer builds a Wall. Mni. Grenade Launcher destroyed. U-05 Engineer builds a Wall. Acquired EM Pulse Gun. Y-45 Defender destroyed. Acquired 3 matter. U-05 Engineer builds a Wall. U-05 Engineer lays Concrete. R-06 Scavenger collects Gauss Rifle. M-13 Machinist repairs Lgt. Ion Engine. U-05 Engineer builds a Wall. K-01 Serf collects debris. EM Pulse Gun destroyed. Acquired Carbon-fiber Leg. U-05 Engineer lays Concrete. M-13 Machinist repairs G-50 Soldier. Mni. Grenade Launcher destroyed. K-01 Serf collects debris. Aluminum Leg destroyed. Map ----- +----------------------------------------------------+ | ???? #??????##+####+###??????????????????????????? | | ???# #??????# #??????????????????????????? | | ???# #??????# ^ [ #??????????????????????????? | | ???# #??????# ^ !^! #??????????????????????????? | | ???# ####???# ![ #??????????????????????????? | | #### ## #### ^ [ #??????????????????????????? | | ### #### ^ #??????????????????????????? | | # ^ #??????????????????????????? | | + #??????????????????????????? | | #### ######??????????????????????????? | | #### #??###???????????????????????????????? | | # ##??# #????????????????????????????????????? | | # #???# #????????????????????????????????????? | | # #???# #????????????????????????????????????? | | # #???# #????????????????????????????????????? | | # #???# h#????????????????????????????????????? | | # #???# #????????????????????????????????????? | | # #??## ##?????########??????????????????????? | | # #?### ##????# #??????????????????????? | | # #?# # # ##???# #??????????????????????? | | # #?# # # #???# """ #??????????????????????? | | # #?# # # ##???# """ #??????????????????????? | | # #?# # # #???# """ #??????????????????????? | | # #?### # ##???# #??####????????????????? | | # #?## # ########;### #????????????????? | | #?## u g @ #????????????????? | | #?## kg #????????????????? | | #??# g w #????????????????? | | +####??# w###;########## #????????????????? | | ???????## ## #???????##+###????????????????? | | ???????## ## #?????????????????????????????? | | ???????## ## #?????????????????????????????? | | ???????## ## #?????????????????????????????? | | ???????## ## ! #?????????????????????????????? | | ???????## ## #?????????????????????????????? | | ????????# ## #?????????????????????????????? | | ????????# ## #?????????????????????????????? | | ????????# ##!] #?????????????????????????????? | | ????????# ##!= #?????????????????????????????? | | ????????# ##] #?????????????????????????????? | | ????????# ## #?????????????????????????????? | | ????????# ########?????????????????????????????? | | ????????# #????????????????????????????????????? | | ????????# #????????????????????????????????????? | | ????????# #????????????????????????????????????? | | ????????# #????????????????????????????????????? | | ????????# #????????????????????????????????????? | | ?^?^????# #????????????????????????????????????? | | ????????# #????????????????????????????????????? | | ????????# #????????????????????????????????????? | +----------------------------------------------------+ Best States ------------- Heat Dissipation 31 Energy Generation 12 Energy Capacity 265 Matter Stores 254 Matter Capacity 300 Sight Range 16 Terrain Scan Density 10 Armor Coverage 450 Evasion (%) 55 Item Schematics ----------------- None Robot Schematics ------------------ None Fabricated ------------ Nothing Alien Tech Used ----------------- None Achievements -------------- None Challenges ------------ None Game ------ Seed BladePropulsionLegs Manual? 0 Play Time 00:11:27 Cumulative 34.4 hours Start 2024.07.16 @ 00:07:41 End 2024.07.16 @ 10:40:45 Sessions 3 Manual Loads 0 Difficulty Rogue Special Mode None Game No. 74 Rogue 8 Adventurer 66 Explorer 0 Win Type - Total 0 Types 0/0/0/0/0/0/0/0/0 Lore% 27 Gallery% 30 Achievement% 29 Wizard Run 0 Options --------- Layout 0 ASCII 0 Keyboard 0 Movement Mouse Keybinds 0 Fullscreen 1 Font 24/Smallcaps Map View 76x50 Zoom Use 0% Tactical HUD 0 Map Filters NONE Filters NONE Steam 1 RUN: 5454a2ff-b103-4711-9cdc-12413c74ef0b